bitfinex-derivatives/quotes_ETHF0:USTF0_20260213
["timestamp","ask_amount","ask_price","bid_price","bid_amount"]
[1770992926580,6.43245968,1976.5,1975.9,4.53068013]
[1770992926876,6.43245968,1976.5,1975.8,11.03966331]
[1770992927375,6.43245968,1976.5,1975.9,11.03966331]
[1770992927574,6.43245968,1976.5,1976.0,6.50898318]
[1770992928278,6.43245968,1976.5,1975.8,11.03966331]
[1770992928576,6.43245968,1976.5,1975.9,6.50898318]
[1770992929179,6.30336283,1976.3,1975.8,6.50898318]
[1770992929572,6.30336283,1976.3,1975.7,11.03966331]
[1770992929979,6.30336283,1976.3,1975.8,6.50898318]
[1770992930174,6.27437677,1976.5,1975.9,6.50898318]
[1770992931179,6.52754677,1976.5,1975.7,4.53068013]
[1770992931381,6.52754677,1976.5,1975.6,11.03966331]
[1770992931679,6.52754677,1976.5,1975.6,6.50898318]
[1770992933080,6.39678674,1976.1,1975.7,4.21196078]
[1770992933280,6.39678674,1976.1,1975.5,4.53068013]
[1770992934280,6.39678674,1976.1,1975.5,11.03966331]
[1770992934779,17.864,1976.1,1975.6,6.50898318]
[1770992936276,17.864,1976.1,1975.7,6.50898318]
[1770992936477,24.29113253,1976.1,1975.7,6.50898318]
[1770992937183,6.42713253,1976.0,1975.6,4.53068013]
[1770992937393,6.42713253,1976.0,1975.6,6.50898318]
[1770992938281,6.42713253,1976.0,1975.6,11.03966331]
[1770992938480,17.864,1976.1,1975.7,6.50898318]
[1770992939281,6.42713253,1976.0,1975.7,6.50898318]
[1770992939482,24.29113253,1976.1,1975.7,6.50898318]
[1770992940289,24.29113253,1976.1,1975.5,6.50898318]
[1770992940290,6.42713253,1976.0,1975.5,6.50898318]
[1770992941991,6.68036253,1976.0,1975.2,6.43422033]
[1770992942489,0.25323,1976.0,1975.2,6.43422033]
[1770992943286,6.96091181,1976.0,1975.2,6.43422033]
[1770992944380,16.364,1976.1,1975.2,6.43422033]
[1770992944786,6.70768181,1976.0,1975.2,6.43422033]
[1770992946391,16.364,1976.1,1975.2,6.43422033]
[1770992946392,23.07168181,1976.1,1975.2,6.43422033]
[1770992946591,6.70768181,1976.3,1975.2,6.43422033]
[1770992946991,6.70768181,1976.1,1975.2,6.43422033]
[1770992950988,13.01968181,1976.2,1975.2,6.43422033]
[1770992952495,6.70768181,1976.1,1975.2,6.43422033]
[1770992955598,12.85581901,1976.2,1975.2,6.43422033]
[1770992955799,6.54381901,1976.1,1975.2,6.43422033]
[1770992957605,6.312,1976.2,1975.2,6.43422033]
[1770992957807,12.81434546,1976.2,1975.2,6.43422033]
[1770992959404,0.00532715,1976.5,1975.4,6.43422033]
[1770992959703,0.00532715,1976.5,1975.6,6.43422033]
[1770992960109,0.00532715,1976.5,1975.8,6.43422033]
[1770992960907,6.46211937,1976.5,1975.8,6.43422033]
[1770992961412,6.71528937,1976.5,1975.4,6.43422033]
[1770992963009,0.00532715,1976.5,1975.4,6.68751033]
[1770992963212,11.40580083,1976.5,1975.4,6.68751033]
[1770992963408,4.95732715,1976.5,1975.4,6.68751033]
[1770992963613,0.00532715,1976.5,1975.4,6.68751033]
[1770992967515,6.65053455,1977.2,1976.1,6.43422033]
[1770992968115,6.65053455,1977.4,1976.3,6.43422033]
[1770992968316,6.90358455,1977.4,1976.3,6.43422033]
[1770992968623,6.91011224,1977.4,1976.3,6.44033764]
[1770992968827,6.70768181,1977.0,1976.3,6.44033764]
[1770992969121,6.70768181,1977.0,1976.3,0.00611731]
[1770992969321,6.70768181,1977.0,1976.3,6.44033764]
[1770992971122,0.25311,1976.9,1976.3,6.07298599]
[1770992971323,6.38214624,1976.9,1976.3,0.00611731]
[1770992971522,6.38214624,1976.9,1976.3,6.07298599]
[1770992973625,6.38214624,1976.9,1976.3,0.00611731]
[1770992974227,6.12903624,1976.9,1976.3,6.07298599]
[1770992979038,6.12903624,1976.9,1976.3,0.00611731]
[1770992979339,6.20017443,1976.7,1976.0,5.94777113]
[1770992979836,0.25309,1976.8,1976.0,5.94777113]
[1770992980238,6.45182602,1976.8,1976.0,5.94777113]
[1770992980430,6.45182602,1976.8,1976.0,5.95248381]
[1770992981632,6.45182602,1976.8,1976.0,0.00471268]
[1770992981836,6.41521788,1976.4,1975.1,5.94777113]
[1770992982138,6.16206788,1976.3,1975.1,5.94777113]
[1770992982329,16.78,1976.4,1975.3,5.94777113]
[1770992982738,6.20017443,1976.7,1975.5,5.94777113]
[1770992982939,6.20017443,1976.7,1975.5,5.95179761]
[1770992983241,6.20017443,1977.2,1975.7,5.94777113]
[1770992983630,6.20017443,1977.2,1975.9,5.94777113]
[1770992985337,6.20017443,1977.0,1975.9,5.94777113]
[1770992985842,6.20017443,1976.7,1975.6,5.94777113]
[1770992987229,6.45328443,1976.7,1975.6,5.94777113]
[1770992989546,6.20017443,1976.5,1975.6,5.94777113]
[1770992990748,21.78017443,1976.4,1975.6,5.94777113]
[1770992991150,6.20017443,1976.3,1975.6,5.94777113]
[1770992994750,6.20017443,1976.1,1975.5,0.00402648]
[1770992994952,6.20017443,1976.1,1975.5,5.95179761]
[1770992995253,6.20017443,1976.1,1975.5,0.00402648]
[1770992995453,6.20017443,1976.1,1975.5,5.95179761]
[1770992999255,6.44937438,1976.4,1975.5,5.95179761]
[1770992999456,22.53966122,1976.3,1975.5,5.95179761]
[1770992999757,14.331,1976.5,1975.5,5.95179761]
[1770993000355,6.17566122,1976.5,1975.5,5.95179761]
[1770993000553,6.18352112,1976.3,1975.5,5.95179761]
[1770993000754,5.71460986,1976.9,1975.7,5.85263192]
[1770993000950,5.71460986,1977.1,1975.9,5.85263192]
[1770993001153,8.73462945,1977.3,1976.3,5.85263192]
[1770993001348,5.71460986,1977.2,1976.3,5.85263192]
[1770993001648,5.72113755,1977.4,1976.3,5.85263192]
[1770993002044,5.71460986,1977.2,1976.3,5.85263192]
[1770993002251,5.71460986,1976.8,1976.1,5.85263192]
[1770993002454,5.71460986,1976.8,1975.6,5.85263192]
[1770993002752,5.97416755,1977.4,1976.0,5.85263192]
[1770993002957,7.55938924,1976.6,1976.0,5.85263192]
[1770993003156,5.71460986,1976.3,1975.8,5.85263192]
[1770993003350,5.71460986,1976.1,1975.6,5.85263192]
[1770993003551,5.71460986,1976.2,1975.6,5.85263192]
[1770993003757,11.647,1976.5,1975.7,5.85263192]
[1770993004054,1.84477938,1976.4,1975.7,5.85263192]
[1770993004251,7.55938924,1976.6,1975.7,5.85263192]
[1770993004557,18.29660986,1976.7,1975.9,5.85263192]
[1770993004762,5.71460986,1976.3,1975.7,5.85263192]
[1770993005053,5.71460986,1976.2,1975.5,5.8566584]
[1770993005248,2.76863936,1975.9,1974.5,5.85263192]
[1770993005448,5.71460986,1975.5,1974.5,5.85263192]
[1770993005953,5.71460986,1975.3,1974.5,5.85263192]
[1770993006155,5.71460986,1975.7,1974.5,5.85263192]
[1770993006456,5.71847982,1975.3,1974.5,5.85836645]
[1770993006855,8.48711918,1975.3,1974.5,5.85836645]
[1770993007056,5.96794986,1974.9,1973.5,5.85263192]
[1770993007255,5.71847982,1975.3,1974.0,5.85263192]
[1770993007455,5.71460986,1975.0,1974.0,5.85263192]
[1770993007653,10.79963936,1975.1,1974.0,5.85263192]
[1770993007654,5.71460986,1974.8,1974.0,5.85263192]
[1770993008053,5.71460986,1974.7,1974.1,5.85263192]
[1770993008257,20.55660986,1974.7,1974.1,5.85263192]
[1770993008552,0.00386996,1975.3,1974.1,5.85263192]
[1770993008758,0.00386996,1975.3,1974.1,6.10606192]
[1770993009056,5.71847982,1975.3,1974.1,5.85263192]
[1770993009955,0.00386996,1975.3,1974.2,0.25343]
[1770993010159,0.00386996,1975.3,1974.3,5.85263192]
[1770993010857,6.109,1975.6,1974.5,5.85263192]
[1770993011059,5.71460986,1975.5,1974.5,5.85263192]
[1770993011559,5.71460986,1975.3,1974.5,5.85263192]
[1770993011854,0.00504024,1975.3,1974.5,5.85263192]
[1770993012048,15.85,1975.8,1974.7,5.85263192]
[1770993012347,5.71460986,1976.4,1974.8,6.10598192]
[1770993012552,5.71460986,1976.4,1975.2,0.2533]
[1770993012750,5.71460986,1976.5,1975.3,5.85263192]
[1770993013150,5.72052305,1976.5,1975.3,5.85263192]
[1770993013559,0.00591319,1976.5,1975.5,5.85263192]
[1770993013858,5.71460986,1976.9,1975.9,5.85263192]
[1770993014060,5.71460986,1977.1,1975.9,5.85263192]
[1770993014358,5.96766986,1977.1,1975.9,5.85263192]
[1770993014558,5.71460986,1977.3,1976.1,5.85263192]
[1770993014754,5.72038465,1977.3,1976.1,5.85263192]
[1770993015155,5.96765986,1977.2,1976.1,5.85263192]
[1770993015354,5.71460986,1976.9,1976.1,5.85263192]
[1770993015560,5.71460986,1976.8,1975.6,5.85263192]
[1770993016264,5.71460986,1976.9,1975.6,5.85263192]
[1770993016558,5.71460986,1976.8,1975.6,5.85263192]
[1770993017160,5.71460986,1977.1,1975.8,5.85263192]
[1770993017553,5.71460986,1976.9,1975.8,5.85263192]
[1770993018361,5.71460986,1977.2,1976.0,5.85263192]
[1770993018856,5.71460986,1977.1,1976.0,5.85263192]
[1770993019259,0.00577479,1977.3,1976.0,5.85263192]
[1770993019560,5.71460986,1978.1,1976.8,5.85263192]
[1770993019764,5.71460986,1978.0,1976.8,5.85263192]
[1770993020060,5.71460986,1977.8,1976.8,5.85263192]
[1770993020262,5.71460986,1977.7,1976.8,5.85263192]
[1770993020451,5.7197157,1977.7,1976.8,5.85263192]
[1770993020657,5.71460986,1977.4,1976.3,5.85263192]
[1770993020857,5.71460986,1977.3,1976.3,5.85263192]
[1770993021064,0.25299,1977.6,1976.3,5.85263192]
[1770993021065,5.71460986,1977.6,1976.3,5.85263192]
[1770993021361,0.00510584,1977.7,1976.5,5.85263192]
[1770993021953,5.7197157,1977.7,1976.5,5.85263192]
[1770993022362,5.71460986,1977.4,1976.5,5.85263192]
[1770993022963,5.71460986,1977.2,1976.3,5.85263192]
[1770993023165,5.71460986,1977.1,1976.1,5.85263192]
[1770993023959,0.25307,1977.0,1976.1,5.85263192]
[1770993024158,5.71460986,1976.9,1975.9,5.85263192]
[1770993025059,5.71460986,1977.4,1975.9,5.85263192]
[1770993025260,5.71460986,1977.4,1976.1,5.85263192]
[1770993025458,5.71460986,1977.4,1976.3,5.85263192]
[1770993026062,2.76863936,1977.3,1976.3,5.85263192]
[1770993026359,8.48324922,1977.0,1975.8,5.85263192]
[1770993026668,5.71460986,1976.9,1975.8,5.85263192]
[1770993027359,5.71460986,1976.4,1975.5,5.85895285]
[1770993027757,20.83760986,1976.6,1975.5,5.85895285]
[1770993028165,15.123,1976.6,1975.7,5.85263192]
[1770993028562,5.71460986,1976.8,1975.7,5.85263192]
[1770993028960,13.378,1977.2,1976.1,5.85263192]
[1770993029167,5.96766986,1977.1,1975.6,5.85263192]
[1770993029367,5.96768986,1976.9,1975.6,5.85263192]
[1770993029663,2.76863936,1976.7,1975.6,5.85263192]
[1770993029868,5.96772986,1976.6,1975.5,5.85895285]
[1770993030968,6.1715153,1976.3,1975.5,0.00632093]
[1770993031173,6.17509935,1976.3,1975.5,0.00632093]
[1770993031666,2.76863936,1975.9,1975.0,5.81150943]
[1770993031860,5.9183553,1975.8,1975.0,5.81150943]
[1770993032066,5.9183553,1975.5,1974.1,5.81150943]
[1770993032966,5.9183553,1975.5,1974.1,5.81550683]
[1770993033168,5.9183553,1975.2,1974.1,5.81550683]
[1770993034170,2.76863936,1974.6,1973.7,5.81150943]
[1770993034376,5.9183553,1974.5,1973.7,5.81150943]
[1770993034675,5.9183553,1974.5,1973.0,5.81150943]
[1770993034872,5.9183553,1974.2,1973.0,5.81150943]
[1770993035170,0.00479186,1974.2,1973.4,5.81150943]
[1770993035879,5.9183553,1975.2,1974.0,5.81150943]
[1770993036071,5.9183553,1975.8,1974.6,5.81150943]
[1770993036276,5.9183553,1975.8,1974.8,5.81150943]
[1770993036776,5.92475856,1975.8,1974.8,5.81755519]
[1770993037672,0.00640326,1975.8,1974.8,5.81755519]
[1770993037873,6.50593729,1975.8,1974.8,5.81755519]
[1770993038477,0.00640326,1975.8,1974.8,5.81755519]
[1770993039181,6.49953403,1976.4,1975.0,6.44222928]
[1770993039379,6.49953403,1977.2,1975.2,6.44222928]
[1770993039581,6.49953403,1977.0,1975.6,6.44222928]
[1770993039887,6.49953403,1977.3,1976.0,6.44222928]
[1770993040183,6.49953403,1977.3,1976.4,6.44222928]
[1770993040184,0.00508602,1977.3,1976.4,6.44222928]
[1770993040384,0.00508602,1977.3,1976.4,6.4469227]
[1770993040584,6.50462005,1977.3,1976.4,6.4469227]
[1770993040786,6.50462005,1977.3,1976.4,0.00469342]
[1770993041083,6.49953403,1976.9,1975.6,6.44222928]
[1770993041286,6.49953403,1976.7,1975.6,6.44222928]
[1770993041486,6.49953403,1976.5,1974.6,6.44222928]
[1770993041786,6.49953403,1976.5,1975.0,6.44222928]
[1770993041986,6.49953403,1976.5,1975.2,6.44222928]
[1770993042187,6.49953403,1976.5,1975.2,6.44614884]
[1770993043084,6.49953403,1976.3,1975.2,0.00391956]
[1770993043690,6.49953403,1976.3,1975.2,6.44614884]
[1770993044587,6.49953403,1976.8,1975.4,6.44222928]
[1770993045090,6.49953403,1976.4,1975.2,6.44614884]
[1770993046387,6.49953403,1976.4,1975.2,6.69944884]
[1770993046587,6.49953403,1976.8,1975.2,6.69944884]
[1770993047780,6.49953403,1977.2,1975.8,6.22936]
[1770993047985,0.00508602,1977.3,1976.1,6.44222928]
[1770993048484,0.00508602,1977.3,1976.5,6.44222928]
[1770993048686,6.49953403,1977.8,1976.7,6.44222928]
[1770993049083,6.49953403,1977.8,1976.9,6.44222928]
[1770993049282,6.21798,1979.5,1977.3,6.44222928]
[1770993049283,6.49953403,1978.3,1977.3,6.44222928]
[1770993049490,6.74766134,1978.9,1977.9,6.44222928]
[1770993049686,6.7526107,1978.9,1977.9,6.44599072]
[1770993049886,6.7526107,1978.9,1977.9,0.00376144]
[1770993050085,6.7526107,1978.9,1977.9,6.44599072]
[1770993050286,6.7526107,1978.9,1977.9,0.00376144]
[1770993050486,6.49953403,1978.3,1976.7,6.44222928]
[1770993050686,6.49953403,1978.1,1976.7,6.44222928]
[1770993050882,6.49953403,1977.9,1976.0,0.25319]
[1770993051087,6.49953403,1977.5,1976.1,6.44222928]
[1770993051594,6.50555613,1977.5,1976.1,6.44801084]
[1770993052391,6.49953403,1977.3,1976.1,0.00578156]
[1770993053094,6.49953403,1976.9,1976.1,0.00578156]
[1770993053795,6.49953403,1976.7,1976.1,1.56e-06]
[1770993053991,6.49953403,1976.7,1975.4,6.44222928]
[1770993054695,6.49953403,1976.7,1974.9,6.44222928]
[1770993054996,6.74906451,1976.6,1974.9,6.4463232]
[1770993055591,6.49953403,1976.6,1975.1,6.44222928]
[1770993055994,6.49953403,1976.6,1975.3,6.44222928]
[1770993056698,6.49953403,1976.2,1975.0,6.44222928]
[1770993057497,6.49953403,1976.5,1975.2,6.44222928]
[1770993058097,6.49953403,1976.5,1975.4,6.44222928]
[1770993058496,6.49953403,1976.8,1975.6,6.44222928]
[1770993060300,6.49953403,1976.8,1975.1,6.44222928]
[1770993060498,6.49953403,1976.8,1975.3,6.44222928]
[1770993060801,0.0060221,1977.5,1974.9,6.23628392]
[1770993060802,6.74955997,1976.6,1975.0,6.5904993]
[1770993060998,6.74955997,1976.2,1974.9,0.00409392]
[1770993061299,6.74955997,1976.0,1974.9,6.59459322]
[1770993061498,6.74955997,1976.5,1975.1,6.5904993]
[1770993061700,6.75467215,1976.5,1975.3,6.5904993]
[1770993061894,6.75467215,1976.5,1975.7,6.5904993]
[1770993062097,6.75467215,1976.5,1975.6,0.25325]
[1770993062098,6.74955997,1977.0,1976.1,6.5904993]
[1770993062299,6.74955997,1977.4,1976.1,6.5904993]
[1770993062498,6.74955997,1976.8,1975.0,6.5904993]
[1770993062688,6.74955997,1976.4,1975.0,6.5904993]
[1770993063091,6.75550425,1976.4,1975.0,6.5904993]
[1770993063996,6.74955997,1976.2,1975.0,6.5904993]
[1770993064202,6.74955997,1976.0,1974.9,0.00409392]
[1770993064704,6.74955997,1975.8,1974.9,0.00409392]
[1770993065398,6.74955997,1975.8,1974.9,6.59459322]
[1770993066504,6.74955997,1975.8,1974.9,0.00409392]
[1770993066801,6.74955997,1975.8,1974.9,6.59459322]
[1770993067004,6.74955997,1976.3,1974.9,6.59459322]
[1770993067704,6.74955997,1975.9,1974.9,0.00409392]
[1770993068304,6.74955997,1975.9,1974.9,6.59459322]
[1770993068501,6.22465,1977.3,1974.9,6.59459322]
[1770993068502,6.74955997,1976.9,1975.8,6.5904993]
[1770993068707,6.74955997,1976.9,1976.0,6.5904993]
[1770993069203,6.74955997,1976.9,1975.7,6.5904993]
[1770993069403,6.74955997,1976.9,1975.8,6.8437193]
[1770993069596,6.7550132,1976.9,1975.8,6.8437193]
[1770993070105,6.7550132,1976.9,1975.8,6.5904993]
[1770993070304,0.00545323,1976.9,1975.8,6.5904993]
[1770993070505,6.74955997,1977.2,1976.4,6.5904993]
[1770993070807,6.74955997,1977.3,1976.3,6.5904993]
[1770993071309,6.74955997,1977.6,1976.7,6.5904993]
[1770993071507,6.75402241,1977.6,1976.7,6.59452578]
[1770993071808,0.00446244,1977.6,1976.7,6.59452578]
[1770993072101,6.75402241,1977.6,1976.7,6.59452578]
[1770993072301,6.75402241,1977.6,1976.7,0.00402648]
[1770993072903,6.74955997,1977.4,1976.1,6.5904993]
[1770993073102,6.74955997,1977.0,1975.8,6.5904993]
[1770993073302,6.74955997,1976.6,1975.1,6.5904993]
[1770993073805,6.74955997,1976.4,1975.1,6.5904993]
[1770993074109,6.74955997,1976.0,1975.1,0.00648378]
[1770993074303,7.00276997,1975.9,1974.3,6.5904993]
[1770993074499,6.74955997,1975.9,1975.0,6.5904993]
[1770993074797,6.74955997,1975.9,1974.4,6.5904993]
[1770993075307,6.74955997,1975.7,1974.4,6.59691289]
[1770993075601,6.74955997,1975.7,1974.4,0.00641359]
[1770993075602,6.74955997,1975.5,1974.4,0.00641359]
[1770993075806,6.74955997,1975.0,1973.5,6.5904993]
[1770993076007,6.74955997,1974.9,1973.5,6.5904993]
[1770993076207,7.00290997,1974.8,1973.5,6.5904993]
[1770993076397,6.74955997,1975.1,1973.7,6.5904993]
[1770993076902,6.74955997,1975.1,1973.7,6.59706123]
[1770993080306,6.74955997,1975.1,1974.1,6.5904993]
[1770993080505,0.25855016,1976.0,1974.3,6.5904993]
[1770993080506,6.74955997,1975.6,1974.3,6.5904993]
[1770993080806,6.74955997,1975.9,1974.7,6.5904993]
[1770993081012,6.74955997,1975.9,1974.9,6.5904993]
[1770993081208,0.00534016,1976.0,1975.1,6.5904993]
[1770993081404,6.74955997,1976.5,1975.3,6.5904993]
[1770993081602,6.74955997,1976.5,1975.3,6.2309]
[1770993081808,6.74955997,1976.9,1975.4,6.8437693]
[1770993082010,6.74955997,1976.9,1975.7,6.5904993]
[1770993082507,6.755374,1976.9,1975.9,6.5904993]
[1770993082910,0.00581403,1976.9,1975.9,6.5904993]
[1770993083110,0.00581403,1976.9,1976.1,6.5904993]
[1770993083709,6.755374,1976.9,1976.1,6.5904993]
[1770993084115,0.00581403,1976.9,1976.1,6.5904993]
[1770993085711,6.74955997,1977.3,1976.3,6.5904993]
[1770993085914,0.25291,1978.3,1976.7,6.5904993]
[1770993085915,6.74955997,1977.9,1976.7,6.5904993]
[1770993086209,6.74955997,1978.0,1976.3,6.5904993]
[1770993086413,6.74955997,1977.6,1975.9,6.5904993]
[1770993086617,6.75505056,1977.6,1975.9,6.595014]
[1770993086917,6.74955997,1977.4,1975.9,6.595014]
[1770993087211,6.74955997,1977.2,1975.9,0.0045147]
[1770993087911,6.74955997,1976.4,1974.8,0.25335]
[1770993088117,6.74955997,1976.2,1974.9,6.5904993]
[1770993088417,7.00281997,1975.5,1974.0,2.0701051]
[1770993088613,7.00281997,1975.5,1973.9,0.25346]
[1770993088614,6.74955997,1975.5,1974.1,2.3235451]
[1770993089509,6.74955997,1975.5,1974.2,2.34410353]
[1770993089709,6.74955997,1975.5,1974.4,2.34410353]
[1770993089915,6.75557063,1975.5,1974.4,2.34410353]
[1770993090312,6.74955997,1975.3,1974.2,0.00437612]
[1770993091617,0.25327,1975.4,1973.5,3.30718615]
[1770993091618,6.85794701,1975.1,1973.5,3.30718615]
[1770993092116,6.85794701,1974.9,1973.2,3.30718615]
[1770993092420,7.11129701,1974.8,1973.2,3.30718615]
[1770993092615,6.85794701,1974.7,1973.2,0.00463521]
[1770993092819,6.85794701,1974.7,1973.2,3.27593464]
[1770993093015,6.85794701,1974.5,1973.2,0.00463521]
[1770993093216,6.85794701,1974.3,1973.2,0.00463521]
[1770993094221,6.85794701,1974.1,1973.2,0.00463521]
[1770993094419,6.86188077,1974.1,1973.2,0.00463521]
[1770993095116,6.86188077,1974.1,1973.2,2.82186399]
[1770993095311,6.86188077,1974.1,1973.2,0.00463521]
[1770993097921,6.86188077,1974.1,1972.1,2.78428067]
[1770993098520,7.01611314,1973.7,1972.0,6.49508]
[1770993098723,7.01611314,1973.7,1971.8,2.85605427]
[1770993099022,7.01611314,1973.7,1971.9,2.85605427]
[1770993099224,7.01611314,1973.7,1972.2,2.85605427]
[1770993099925,7.01611314,1974.0,1973.3,6.23726]
[1770993100126,7.0200469,1974.1,1973.3,3.0708702]
[1770993100418,7.0200469,1974.1,1973.3,0.25354]
[1770993100623,7.0200469,1974.1,1972.7,2.77108075]
[1770993101628,7.0200469,1974.1,1972.9,2.73292555]
[1770993101920,7.0200469,1974.1,1973.3,2.73292555]
[1770993102322,7.0200469,1974.1,1973.2,0.25356]
[1770993103126,7.0200469,1974.1,1973.0,2.73292555]
[1770993103626,7.0200469,1974.1,1972.6,6.49279]
[1770993103627,7.0200469,1974.1,1972.7,3.28924603]
[1770993104223,7.0200469,1974.1,1972.6,3.54287603]
[1770993104628,7.0200469,1974.1,1972.7,3.27367987]
[1770993104925,7.0200469,1974.1,1972.9,3.27367987]
[1770993105133,7.0200469,1974.1,1973.1,3.27367987]
[1770993105731,7.0200469,1974.1,1973.2,3.4884245]
[1770993106524,7.0200469,1974.1,1972.6,6.23947]
[1770993106525,7.0200469,1974.1,1972.7,2.82410597]
[1770993106732,7.0200469,1974.1,1972.9,2.82410597]
[1770993107530,0.00393376,1974.1,1973.5,2.78679113]
[1770993107829,7.0200469,1974.1,1973.2,2.78679113]
[1770993108031,0.00393376,1974.1,1973.3,3.04033113]
[1770993108331,6.23002,1975.6,1973.3,3.04033113]
[1770993108332,13.77,1975.5,1974.0,3.29701113]
[1770993108523,7.01611314,1975.0,1974.3,0.25341]
[1770993108723,7.01611314,1975.3,1974.3,3.32982567]
[1770993108925,2.78862854,1975.3,1974.6,3.07641567]
[1770993109126,6.47933,1976.8,1975.2,7.1157703]
[1770993109127,7.01611314,1976.1,1975.2,7.1157703]
[1770993109330,7.01611314,1976.4,1974.8,7.1157703]
[1770993109521,7.01611314,1976.4,1975.0,7.1157703]
[1770993109828,7.01611314,1976.4,1975.4,7.1157703]
[1770993110226,7.02239324,1976.4,1975.4,7.1157703]
[1770993110531,0.0062801,1976.4,1975.6,7.1157703]
[1770993111420,7.02239324,1976.4,1975.6,7.1157703]
[1770993111727,7.01611314,1977.0,1976.0,7.1157703]
[1770993111928,7.01611314,1977.3,1976.2,7.1157703]
[1770993112326,7.01611314,1977.3,1976.4,7.1157703]
[1770993112830,7.02208634,1977.3,1976.4,0.00597384]
[1770993113420,7.02208634,1977.3,1976.5,7.1157703]
[1770993113628,0.0059732,1977.3,1976.5,7.1157703]
[1770993114035,7.02208634,1977.3,1976.5,7.1157703]
[1770993114533,0.0059732,1977.3,1976.5,7.1157703]
[1770993114834,7.01611314,1978.2,1976.8,7.1157703]
[1770993115733,7.01984471,1978.2,1976.7,7.1157703]
[1770993115928,7.01611314,1978.8,1977.5,7.1157703]
[1770993116326,7.01611314,1979.6,1978.5,7.1157703]
[1770993116730,7.01611314,1979.6,1977.7,6.47626]
[1770993116934,7.01611314,1979.3,1977.8,7.1157703]
[1770993117133,6.21992,1978.8,1977.7,0.00540581]
[1770993117336,7.01611314,1978.7,1977.1,7.1157703]
[1770993118033,7.01611314,1978.7,1977.5,7.1157703]
[1770993118233,7.01611314,1978.7,1977.5,7.12109432]
[1770993119334,7.01611314,1979.4,1977.5,7.12109432]
[1770993119934,7.01611314,1979.4,1977.6,7.1157703]
[1770993120438,7.01611314,1978.7,1976.8,7.3688603]
[1770993120637,7.01611314,1978.7,1976.9,7.1157703]
[1770993121032,6.66764916,1978.5,1976.9,6.40551621]
[1770993121232,6.66764916,1978.5,1977.3,6.40551621]
[1770993121639,6.66764916,1978.5,1977.3,6.40934244]
[1770993121836,6.66764916,1978.5,1977.3,0.00382623]
[1770993122632,6.66764916,1978.5,1977.3,6.40934244]
[1770993122837,6.66764916,1979.3,1977.5,6.40551621]
[1770993123032,6.66764916,1979.3,1977.7,6.40551621]
[1770993123238,6.66764916,1979.3,1977.4,6.40551621]
[1770993123841,6.66764916,1979.1,1977.4,6.40551621]
[1770993124141,6.21777,1979.5,1977.6,6.40551621]
[1770993124142,6.66764916,1978.9,1977.6,6.40551621]
[1770993124336,6.66764916,1978.9,1977.7,6.65849621]
[1770993124636,6.66764916,1978.9,1977.6,6.22366]
[1770993124637,6.66764916,1978.9,1977.3,6.40934244]
[1770993125036,6.66764916,1978.7,1977.3,0.00382623]
[1770993125234,6.66764916,1978.5,1977.3,0.00382623]
[1770993125739,6.66764916,1978.1,1976.5,0.25313]
[1770993125941,6.66764916,1978.1,1976.5,6.65864621]
[1770993126143,6.66764916,1977.7,1976.2,6.40551621]
[1770993126641,6.66764916,1977.3,1975.6,6.40551621]
[1770993126841,6.66764916,1977.3,1976.2,0.00393746]
[1770993127546,6.66764916,1977.6,1976.5,0.25313]
[1770993127742,6.66764916,1977.6,1976.7,6.65862621]
[1770993128042,6.66764916,1977.6,1976.7,6.40551621]
[1770993128238,6.66764916,1977.6,1976.2,0.00393746]
[1770993128443,6.66764916,1977.6,1976.2,6.40945367]
[1770993128642,6.66764916,1977.6,1976.3,6.65867621]
[1770993128841,6.66764916,1977.6,1976.6,6.40551621]
[1770993129035,6.66764916,1977.6,1976.5,0.25313]
[1770993129036,6.66764916,1977.6,1976.8,6.40551621]
[1770993129344,6.67148087,1977.7,1976.8,6.40551621]
[1770993129733,6.67148087,1977.7,1976.2,6.40945367]
[1770993130145,6.67148087,1977.7,1976.3,6.65867621]
[1770993130344,6.67148087,1977.7,1976.3,6.40551621]
[1770993130544,6.67148087,1977.7,1976.2,0.00393746]
[1770993130744,6.67148087,1977.7,1976.2,6.40945367]
[1770993130946,6.67148087,1977.7,1976.2,0.00393746]
[1770993131145,6.67148087,1977.7,1976.2,6.40945367]
[1770993131349,6.67148087,1977.7,1976.2,6.66262367]
[1770993131550,6.66764916,1977.3,1976.2,0.00393746]
[1770993131850,6.66764916,1977.3,1976.2,6.39977953]
[1770993132558,6.66764916,1977.3,1976.2,0.00393746]
[1770993133349,6.66764916,1977.3,1976.2,5.96913107]
[1770993134354,6.66764916,1977.3,1976.2,0.00393746]
[1770993135255,6.66764916,1977.3,1976.4,5.82306427]
[1770993135451,6.67148087,1977.7,1976.7,12.20598334]
[1770993135657,6.66764916,1978.3,1977.1,6.52129163]
[1770993136053,6.66764916,1978.3,1977.1,6.26823163]
[1770993136257,6.66764916,1978.3,1976.9,6.26823163]
[1770993136555,6.66764916,1978.3,1977.5,6.2010034]
[1770993136754,0.00364486,1978.3,1977.6,6.4539934]
[1770993136953,6.66764916,1978.7,1977.6,6.4539934]
[1770993137154,6.66764916,1978.7,1977.1,6.4540534]
[1770993137559,13.14078916,1978.7,1977.1,6.2010034]
[1770993137761,6.66764916,1978.4,1976.8,6.10632015]
[1770993138060,6.66764916,1978.4,1977.1,0.00361912]
[1770993138253,0.2529,1978.3,1977.1,0.00361912]
[1770993138562,6.66764916,1978.0,1977.1,0.00361912]
[1770993138859,6.66764916,1978.0,1976.1,6.22841]
[1770993138860,6.66764916,1977.8,1976.1,6.40551621]
[1770993139061,6.66764916,1977.8,1976.2,6.65868621]
[1770993139261,6.66764916,1977.8,1976.4,6.65865621]
[1770993139462,6.66764916,1977.8,1976.6,6.65862621]
[1770993139858,6.66764916,1977.8,1976.6,6.41126501]
[1770993140060,6.66764916,1977.8,1976.6,0.0057488]
[1770993140458,6.22221,1978.1,1975.6,6.22972]
[1770993140459,6.66764916,1977.2,1976.0,6.40551621]
[1770993140661,6.66764916,1977.2,1975.6,0.25324]
[1770993140662,6.66764916,1977.2,1975.7,5.96987429]
[1770993140965,6.66764916,1977.2,1975.8,6.22309429]
[1770993141458,6.66764916,1977.0,1975.8,5.96987429]
[1770993141659,6.67259868,1977.0,1975.8,0.00513272]
[1770993142262,6.66764916,1976.8,1975.8,0.00513272]
[1770993142759,6.66764916,1976.8,1975.8,5.77717239]
[1770993143060,6.66764916,1976.8,1975.8,0.00513272]
[1770993143263,6.67259868,1977.0,1975.9,6.02524967]
[1770993143455,6.66764916,1977.3,1976.5,5.93485061]
[1770993143656,6.66764916,1977.9,1976.5,5.93485061]
[1770993143856,0.25297,1977.8,1976.2,5.68172061]
[1770993144163,6.92061916,1977.8,1976.3,0.25316]
[1770993144355,6.66764916,1977.8,1976.5,0.25313]
[1770993144560,6.67393281,1977.8,1976.5,5.93485061]
[1770993144763,6.66764916,1977.6,1976.1,5.79422656]
[1770993144960,6.66764916,1977.4,1976.1,5.79422656]
[1770993145261,6.66764916,1977.0,1975.8,0.00513272]
[1770993145566,6.66764916,1976.6,1975.8,0.00513272]
[1770993145956,0.25316,1976.3,1974.9,5.70928443]